bitfinex/quotes_BTCUSD_20240729
["timestamp","ask_amount","ask_price","bid_price","bid_amount"]
[1722297236608,2.34727348,66954.0,66953.0,0.00362662]
[1722297237613,2.40215756,66954.0,66953.0,0.00362662]
[1722297237832,2.4081898,66954.0,66953.0,0.00262662]
[1722297238087,2.42175204,66954.0,66953.0,0.00262662]
[1722297238283,2.37747301,66954.0,66953.0,0.00262662]
[1722297238486,2.44596705,66954.0,66953.0,0.00162662]
[1722297238816,2.44596705,66954.0,66953.0,0.00262662]
[1722297238817,2.45596705,66954.0,66953.0,0.00262662]
[1722297238951,2.36747301,66954.0,66953.0,0.00162662]
[1722297239370,2.47012118,66954.0,66953.0,0.00262662]
[1722297239551,2.36147301,66954.0,66953.0,0.00262662]
[1722297239784,2.47236027,66954.0,66953.0,0.00262662]
[1722297239985,2.35147301,66954.0,66953.0,0.00262662]
[1722297240184,2.47235997,66954.0,66953.0,0.00262662]
[1722297240717,2.35775689,66954.0,66953.0,0.00262662]
[1722297240943,2.46861621,66954.0,66953.0,0.00262662]
[1722297241168,2.35775689,66954.0,66953.0,0.00262662]
[1722297241424,2.38119378,66954.0,66953.0,0.00262662]
[1722297241664,2.54949378,66954.0,66953.0,0.00262662]
[1722297241927,2.53549378,66954.0,66953.0,0.00262662]
[1722297242165,2.84820578,66954.0,66953.0,0.00262662]
[1722297242639,2.82476889,66954.0,66953.0,0.00262662]
[1722297243177,2.97503465,66954.0,66953.0,0.00262662]
[1722297243521,2.82524632,66954.0,66953.0,0.00262662]
[1722297243811,2.81524632,66954.0,66953.0,0.00262662]
[1722297244010,2.82524632,66954.0,66953.0,0.00262662]
[1722297244538,2.54798919,66954.0,66953.0,0.00262662]
[1722297244903,2.8489115,66954.0,66953.0,0.00262662]
[1722297245674,2.97871267,66954.0,66953.0,0.00262662]
[1722297245901,2.97527496,66954.0,66953.0,0.00262662]
[1722297246047,2.82547379,66954.0,66953.0,0.00262662]
[1722297246263,2.52455148,66954.0,66953.0,0.00262662]
[1722297246462,2.82568154,66954.0,66953.0,0.00262662]
[1722297246687,2.97551046,66954.0,66953.0,0.00262662]
[1722297246988,2.82568154,66954.0,66953.0,0.00262662]
[1722297247390,2.97549847,66954.0,66953.0,0.00262662]
[1722297247547,2.82568154,66954.0,66953.0,0.00262662]
[1722297247958,2.81568154,66954.0,66953.0,0.00262662]
[1722297248185,2.8255317,66954.0,66953.0,0.00262662]
[1722297248562,2.8155317,66954.0,66953.0,0.00262662]
[1722297248774,2.8255317,66954.0,66953.0,0.00262662]
[1722297248970,2.5268197,66954.0,66953.0,0.00262662]
[1722297249224,2.55025678,66954.0,66953.0,0.00262662]
[1722297249605,2.84896878,66954.0,66953.0,0.00262662]
[1722297249985,2.55025678,66954.0,66953.0,0.00262662]
[1722297250274,2.84896878,66954.0,66953.0,0.00262662]
[1722297250483,2.5268197,66954.0,66953.0,0.00262662]
[1722297251629,2.8255317,66954.0,66953.0,0.00262662]
[1722297252832,2.82542498,66954.0,66953.0,0.00262662]
[1722297253036,2.52671298,66954.0,66953.0,0.00262662]
[1722297253298,2.52672678,66954.0,66953.0,0.00262662]
[1722297253539,2.74546897,66954.0,66953.0,0.00262662]
[1722297253662,2.84887603,66954.0,66953.0,0.00262662]
[1722297254748,3.06758596,66954.0,66953.0,0.00262662]
[1722297254924,2.84873771,66954.0,66953.0,0.00262662]
[1722297255126,2.84873771,66954.0,66953.0,6.2e-07]
[1722297255341,1.531806,66944.0,66943.0,0.000913]
[1722297255546,2.86281567,66944.0,66943.0,0.000913]
[1722297255985,2.86309298,66944.0,66943.0,0.000913]
[1722297256125,2.86309298,66944.0,66936.0,0.009251]
[1722297256126,1.974834,66937.0,66936.0,0.009251]
[1722297256318,3.00733893,66937.0,66936.0,0.009251]
[1722297256721,3.30612693,66937.0,66936.0,0.009251]
[1722297257539,3.30812693,66937.0,66936.0,0.009251]
[1722297257963,3.32212693,66937.0,66936.0,0.009251]
[1722297258363,3.52664084,66937.0,66936.0,0.009251]
[1722297258562,3.30812693,66937.0,66936.0,0.009251]
[1722297258766,2.88068196,66937.0,66936.0,0.009251]
[1722297258943,2.28086767,66937.0,66936.0,0.009251]
[1722297259147,2.59678382,66937.0,66936.0,0.009251]
[1722297259401,2.58278382,66937.0,66936.0,0.009251]
[1722297259784,2.59678382,66937.0,66936.0,0.009251]
[1722297259988,2.58278382,66937.0,66936.0,0.009251]
[1722297260391,2.59678382,66937.0,66936.0,0.009251]
[1722297261243,2.60567019,66937.0,66936.0,0.009251]
[1722297261442,2.92445819,66937.0,66936.0,0.009251]
[1722297262308,2.9244924,66937.0,66936.0,0.009251]
[1722297265585,2.9246811,66937.0,66936.0,0.009251]
[1722297265790,2.9046811,66937.0,66936.0,0.009251]
[1722297266000,2.9246811,66937.0,66936.0,0.009251]
[1722297266198,2.9046811,66937.0,66936.0,0.009251]
[1722297266580,2.3936931,66937.0,66936.0,0.009251]
[1722297266776,2.3936931,66937.0,66936.0,0.073051]
[1722297267184,2.39370919,66937.0,66936.0,0.073051]
[1722297267582,2.37970919,66937.0,66936.0,0.073051]
[1722297267845,2.39370919,66937.0,66936.0,0.009251]
[1722297268641,2.39458719,66937.0,66936.0,0.009251]
[1722297269454,2.38058719,66937.0,66936.0,0.009251]
[1722297270852,2.37114416,66937.0,66936.0,0.009251]
[1722297271133,2.37114416,66937.0,66936.0,0.149251]
[1722297271345,1.3311824,66937.0,66936.0,0.149251]
[1722297271547,1.15235014,66937.0,66936.0,0.149251]
[1722297271754,1.02814925,66937.0,66936.0,0.149251]
[1722297271884,1.1523243,66937.0,66936.0,0.149251]
[1722297272088,0.4053543,66937.0,66936.0,0.149251]
[1722297272287,0.3913543,66937.0,66936.0,0.149251]
[1722297272487,0.29105061,66937.0,66936.0,0.149251]
[1722297272697,0.28905061,66937.0,66936.0,0.149251]
[1722297272982,0.43844461,66937.0,66936.0,0.149251]
[1722297273422,0.28905061,66937.0,66936.0,0.44174639]
[1722297273626,0.12049312,66937.0,66936.0,0.44174639]
[1722297274025,0.10849312,66937.0,66936.0,0.44330059]
[1722297274449,0.10849312,66937.0,66936.0,0.1508052]
[1722297274656,0.55667512,66937.0,66936.0,0.149251]
[1722297274863,0.66765339,66937.0,66936.0,0.149251]
[1722297275069,0.74741203,66937.0,66936.0,0.149251]
[1722297275273,0.59773661,66937.0,66936.0,0.149251]
[1722297275481,0.10849312,66937.0,66936.0,0.149251]
[1722297276795,0.55667512,66937.0,66936.0,0.149251]
[1722297277037,0.68083989,66937.0,66936.0,0.149251]
[1722297277468,0.63144138,66937.0,66936.0,0.149251]
[1722297277693,0.48343704,66937.0,66936.0,0.149251]
[1722297277939,0.48843704,66937.0,66936.0,0.149251]
[1722297278178,0.48543332,66937.0,66936.0,0.149251]
[1722297278399,0.46323944,66937.0,66936.0,0.149251]
[1722297278629,0.46423944,66937.0,66936.0,0.149251]
[1722297278880,0.31486211,66937.0,66936.0,0.149251]
[1722297279072,0.1462897,66937.0,66936.0,0.149251]
[1722297279402,0.31485719,66937.0,66936.0,0.149251]
[1722297279609,0.1462897,66937.0,66936.0,0.149251]
[1722297279820,0.16625522,66937.0,66936.0,0.149251]
[1722297280023,1.03838818,66937.0,66936.0,0.149251]
[1722297280225,0.69519858,66937.0,66936.0,0.149251]
[1722297280501,0.76078315,66937.0,66936.0,0.149251]
[1722297280642,0.76180159,66937.0,66936.0,0.149251]
[1722297281014,0.39541266,66937.0,66936.0,0.149251]
[1722297281214,0.27124479,66937.0,66936.0,0.149251]
[1722297281435,0.39540959,66937.0,66936.0,0.149251]
[1722297281593,0.39240959,66937.0,66936.0,0.149251]
[1722297282519,0.60759786,66937.0,66936.0,0.149251]
[1722297282718,0.90638586,66937.0,66936.0,0.149251]
[1722297282912,0.92982477,66937.0,66936.0,0.149251]
[1722297283095,0.8632215,66937.0,66936.0,0.149251]
[1722297283501,0.8642215,66937.0,66936.0,0.149251]
[1722297283721,0.93082919,66937.0,66936.0,0.149251]
[1722297284065,0.8642215,66937.0,66936.0,0.149251]
[1722297284395,0.78226546,66937.0,66936.0,0.149251]
[1722297284597,0.93123716,66937.0,66936.0,0.149251]
[1722297284828,0.8646082,66937.0,66936.0,0.149251]
[1722297285247,0.78226265,66937.0,66936.0,0.149251]
[1722297285393,0.7156365,66937.0,66936.0,0.149251]
[1722297285589,0.78228746,66937.0,66936.0,0.149251]
[1722297285857,0.7156365,66937.0,66936.0,0.149251]
[1722297286852,0.78228746,66937.0,66936.0,0.149251]
[1722297287059,0.63589577,66937.0,66936.0,0.149251]
[1722297287269,0.78228727,66937.0,66936.0,0.149251]
[1722297287487,0.5914717,66937.0,66936.0,0.149251]
[1722297287686,0.76005724,66937.0,66936.0,0.149251]
[1722297287847,0.71563512,66937.0,66936.0,0.149251]
[1722297288049,0.69219621,66937.0,66936.0,0.149251]
[1722297288652,0.73662809,66937.0,66936.0,0.149251]
[1722297288951,0.11985079,66937.0,66936.0,0.149251]
[1722297289391,0.11985079,66937.0,66936.0,1.08530941]
[1722297289592,0.11985079,66937.0,66936.0,1.33812239]
[1722297289806,0.001,66937.0,66936.0,1.33812239]
[1722297290210,0.00084,66942.0,66941.0,0.448155]
[1722297290416,0.00084,66942.0,66941.0,0.590555]
[1722297290417,0.10932675,66942.0,66941.0,0.590555]
[1722297291257,0.11032675,66942.0,66941.0,0.590555]
[1722297291702,0.11132675,66942.0,66941.0,0.889325]
[1722297292317,0.11132675,66942.0,66941.0,0.590555]
[1722297292748,0.1347632,66942.0,66941.0,0.590555]
[1722297293002,0.15113241,66942.0,66941.0,0.590555]
[1722297293166,0.12769596,66942.0,66941.0,0.590555]
[1722297293380,0.11132675,66942.0,66941.0,0.590555]
[1722297294624,0.11132675,66942.0,66941.0,0.291785]
[1722297294830,0.11132675,66942.0,66941.0,0.1424]
[1722297294831,0.12769596,66942.0,66941.0,0.1424]
[1722297295458,0.12769596,66942.0,66941.0,0.291785]
[1722297295683,0.15113259,66942.0,66941.0,0.291785]
[1722297295886,0.12769596,66942.0,66941.0,0.291785]
[1722297298219,0.12769596,66942.0,66941.0,0.1424]
[1722297298850,0.12769596,66942.0,66941.0,0.1439542]
[1722297299204,0.15113254,66942.0,66941.0,0.1439542]
[1722297299938,0.12769596,66942.0,66941.0,0.1439542]
[1722297300549,0.25184363,66942.0,66941.0,0.1439542]
[1722297300741,0.25184569,66942.0,66941.0,0.1439542]
[1722297300947,0.12769596,66942.0,66941.0,0.1439542]
[1722297301148,0.14335755,66942.0,66941.0,0.1439542]
[1722297301375,0.2518443,66942.0,66941.0,0.1439542]
[1722297301970,0.2518443,66942.0,66941.0,0.2933392]
[1722297302663,0.25184258,66942.0,66941.0,0.1439542]
[1722297303069,0.27527925,66942.0,66941.0,0.2933392]
[1722297303242,0.25184258,66942.0,66941.0,0.1424]
[1722297303448,0.40122558,66942.0,66941.0,0.1424]
[1722297303649,0.40122558,66942.0,66936.0,0.31086319]
[1722297303650,0.448174,66938.0,66937.0,0.0015542]
[1722297303855,0.68081794,66938.0,66937.0,0.0015542]
[1722297304028,0.83417302,66938.0,66937.0,0.0015542]
[1722297304596,0.69327252,66938.0,66937.0,0.0015542]
[1722297304718,0.83400879,66938.0,66937.0,0.0015542]
[1722297304917,0.83400962,66938.0,66937.0,0.0015542]
[1722297305120,0.24509935,66938.0,66937.0,0.0015542]
[1722297305543,0.69327335,66938.0,66937.0,0.0015542]
[1722297305742,0.69427335,66938.0,66936.0,0.074951]
[1722297305943,0.25788075,66937.0,66936.0,0.074951]
[1722297306143,0.3820366,66937.0,66936.0,0.07637278]
[1722297306379,0.39449118,66937.0,66936.0,0.074951]
[1722297306608,0.39449118,66937.0,66936.0,0.0765052]
[1722297307606,0.39449118,66937.0,66936.0,0.074951]
[1722297307607,0.24509718,66937.0,66936.0,0.074951]
[1722297307859,0.12294133,66937.0,66936.0,0.44474639]
[1722297308052,0.12294133,66937.0,66936.0,0.74353839]
[1722297308593,0.11048675,66937.0,66936.0,0.74353839]
[1722297308793,0.10948675,66937.0,66936.0,0.74353839]
[1722297309408,0.10948675,66937.0,66936.0,1.04233039]
[1722297309617,0.10948675,66937.0,66936.0,1.38067579]
[1722297309816,0.10948675,66937.0,66936.0,1.41067579]
[1722297310037,0.001,66937.0,66936.0,1.71146779]
[1722297310241,0.002,66937.0,66936.0,1.71146779]
[1722297310677,0.001,66937.0,66936.0,1.71146779]
[1722297310999,0.002,66937.0,66936.0,1.85456718]
[1722297311179,0.002,66937.0,66936.0,1.35112239]
[1722297311610,0.02543454,66937.0,66936.0,1.35112239]
[1722297312016,0.002,66937.0,66936.0,1.35112239]
[1722297312223,0.002,66937.0,66936.0,1.34112239]
[1722297312371,0.08309825,66937.0,66936.0,1.04233039]
[1722297312692,0.08309825,66937.0,66936.0,0.29535039]
[1722297312693,0.09149207,66937.0,66936.0,0.29535039]
[1722297312921,0.08309825,66937.0,66936.0,0.44474639]
[1722297313206,0.23249225,66937.0,66936.0,0.1538052]
[1722297313415,0.24399222,66937.0,66936.0,0.152251]
[1722297313775,0.24499222,66937.0,66936.0,0.160251]
[1722297313984,0.09459822,66937.0,66936.0,0.301647]
[1722297314184,0.24399222,66937.0,66936.0,0.009251]
[1722297314503,0.66793575,66937.0,66936.0,0.017251]
[1722297314705,0.36814775,66937.0,66936.0,0.017251]
[1722297315083,0.39158582,66937.0,66936.0,0.017251]
[1722297315289,0.39158589,66937.0,66936.0,0.017251]
[1722297315491,0.09459822,66937.0,66936.0,0.017251]
[1722297316375,0.24399222,66937.0,66936.0,0.017251]
[1722297317079,0.54278022,66937.0,66936.0,0.017251]
[1722297317643,0.71132241,66937.0,66936.0,0.017251]
[1722297317873,0.58716932,66937.0,66936.0,0.017251]
[1722297318201,0.71132141,66937.0,66936.0,0.017251]
[1722297318387,0.54278022,66937.0,66936.0,0.017251]
[1722297318587,0.71138233,66937.0,66936.0,0.017251]
[1722297318796,0.43603232,66937.0,66936.0,0.017251]
[1722297318996,0.11803621,66937.0,66936.0,0.017251]
[1722297319355,0.26843021,66937.0,66936.0,0.026251]
[1722297319562,0.16843021,66937.0,66936.0,0.026251]
[1722297319744,0.16491928,66937.0,66936.0,0.026251]
[1722297319941,0.16391928,66937.0,66936.0,0.017251]
[1722297320168,0.16391928,66937.0,66936.0,0.078951]
[1722297321050,0.63230563,66937.0,66936.0,0.026251]
[1722297321258,0.93109363,66937.0,66936.0,0.026251]
[1722297321476,0.88664561,66937.0,66936.0,0.026251]
[1722297321658,0.46370728,66937.0,66936.0,0.026251]
[1722297321862,0.28907874,66937.0,66936.0,0.026251]
[1722297322020,0.3335717,66937.0,66936.0,0.026251]
[1722297322222,0.1841777,66937.0,66936.0,0.20361603]
[1722297322429,0.13968474,66937.0,66936.0,0.34231603]
[1722297322849,0.13968474,66937.0,66936.0,0.49171203]
[1722297323232,0.13968474,66937.0,66936.0,0.45744639]
[1722297323429,0.16312226,66937.0,66936.0,0.30805039]
[1722297323636,0.20761522,66937.0,66936.0,0.30805039]
[1722297323840,0.16312226,66937.0,66936.0,0.30805039]
[1722297324034,0.20761212,66937.0,66936.0,0.30805039]
[1722297324477,0.16312226,66937.0,66936.0,0.30805039]
[1722297324858,0.16311609,66937.0,66936.0,0.30805039]
[1722297325064,0.01552528,66937.0,66936.0,0.30805039]
[1722297326117,0.01552528,66937.0,66936.0,0.30946845]
[1722297326561,0.18417161,66937.0,66936.0,0.30805039]
[1722297326782,0.01552528,66937.0,66936.0,0.30805039]
[1722297327022,0.03896275,66937.0,66936.0,0.86366417]
[1722297327248,0.02443747,66937.0,66936.0,0.86366417]
[1722297327483,0.02443747,66937.0,66936.0,0.56487217]
[1722297327707,0.02443747,66937.0,66936.0,0.41547617]
[1722297327925,0.02443747,66937.0,66936.0,0.30805039]
[1722297328143,0.03891693,66937.0,66936.0,0.30805039]
[1722297328593,0.01547946,66937.0,66936.0,0.30805039]
[1722297329061,0.01547946,66937.0,66936.0,0.75623839]
[1722297329220,0.01547946,66937.0,66936.0,0.45744639]
[1722297329429,0.001,66937.0,66936.0,0.45744639]
[1722297329841,0.01547946,66937.0,66936.0,0.45744639]
[1722297330626,0.01547946,66937.0,66936.0,0.56502698]
[1722297330798,0.01547946,66937.0,66936.0,1.57140298]
[1722297331207,0.001,66937.0,66936.0,1.57140298]
[1722297331548,0.001,66937.0,66936.0,1.59140298]
[1722297331705,0.001,66937.0,66936.0,1.57140298]
[1722297332488,0.001,66937.0,66936.0,1.59340298]
[1722297333159,0.00084,66942.0,66941.0,1.183795]
[1722297333445,0.00084,66942.0,66941.0,1.50954718]
[1722297335668,0.02427428,66942.0,66941.0,1.50954718]
[1722297336839,0.00084,66942.0,66941.0,1.50954718]
[1722297337397,0.00184,66942.0,66941.0,1.53354718]
[1722297337795,0.00084,66942.0,66941.0,1.52354718]
[1722297338022,0.00084,66942.0,66941.0,1.85431718]
[1722297338238,0.00184,66942.0,66941.0,1.86831718]
[1722297338398,0.00184,66942.0,66941.0,1.92876378]
[1722297338786,0.00084,66942.0,66941.0,1.91476378]
[1722297339219,0.06674453,66959.0,66941.0,1.91476378]
[1722297339220,0.04449635,66959.0,66958.0,0.149347]
[1722297339503,0.04449635,66961.0,66960.0,0.448027]
[1722297339728,0.09169497,66962.0,66961.0,0.448021]
[1722297339925,0.09173377,66962.0,66961.0,0.88980139]
[1722297340132,0.09173377,66962.0,66961.0,1.09880078]
[1722297340353,0.07066578,66962.0,66961.0,1.09880078]
[1722297340715,0.00084,66967.0,66961.0,1.09880078]
[1722297340716,0.00084,66967.0,66966.0,0.447988]
[1722297340935,0.00084,66967.0,66966.0,0.92929979]
[1722297341132,0.05090709,66967.0,66966.0,1.37345879]
[1722297341335,0.05090709,66967.0,66966.0,1.51655818]
[1722297341336,0.00084,66967.0,66966.0,1.51655818]
[1722297341884,0.00184,66967.0,66966.0,1.51655818]
[1722297342665,0.00184,66967.0,66966.0,1.07479979]
[1722297343234,0.00084,66967.0,66966.0,1.07479979]
[1722297343436,0.00184,66967.0,66966.0,1.08779979]
[1722297343659,0.02526549,66967.0,66966.0,1.08779979]
[1722297345112,0.02526549,66967.0,66966.0,1.38645879]
[1722297345267,0.02526549,66967.0,66966.0,1.52955818]
[1722297345859,0.02526549,66967.0,66966.0,1.52000478]
[1722297346136,0.02526549,66967.0,66966.0,1.62000478]
[1722297346334,0.00184,66967.0,66966.0,1.62200478]
[1722297346680,0.00184,66967.0,66966.0,1.63600478]
[1722297346681,0.00284,66967.0,66966.0,1.63600478]
[1722297346895,0.00184,66967.0,66966.0,1.60900478]
[1722297347318,0.00384,66967.0,66966.0,1.61500478]
[1722297347533,0.00384,66967.0,66966.0,1.60500478]
[1722297347736,0.00384,66967.0,66966.0,1.46190539]
[1722297349584,0.02726425,66967.0,66966.0,1.46190539]
[1722297349724,0.00384,66967.0,66966.0,1.46190539]
[1722297349918,0.00384,66967.0,66966.0,1.44790539]
[1722297349919,0.00284,66967.0,66966.0,1.44790539]
[1722297350232,0.00284,66967.0,66966.0,1.59100478]
[1722297350633,0.00284,66967.0,66966.0,1.60500478]
[1722297351591,0.00084,66967.0,66966.0,1.59100478]
[1722297354742,0.00184,66967.0,66966.0,1.60500478]
[1722297356689,0.00184,66967.0,66966.0,1.30634578]
[1722297357591,0.02526435,66967.0,66966.0,1.30634578]
[1722297358721,0.00184,66967.0,66966.0,1.51854578]
[1722297359116,0.00184,66967.0,66966.0,1.82720478]
[1722297359762,0.00184,66967.0,66966.0,1.84720478]
[1722297359947,0.00184,66967.0,66966.0,1.84920478]
[1722297360810,0.0602,66988.0,66981.0,0.0621]
[1722297360953,0.0539721,66987.0,66986.0,0.149283]
[1722297361160,0.06887017,66987.0,66984.0,0.149287]
[1722297361380,0.0539721,66986.0,66985.0,0.14309939]
[1722297362045,0.09229097,66986.0,66985.0,0.14309939]
[1722297362270,0.06887017,66986.0,66985.0,0.14309939]
[1722297364436,0.06887017,66986.0,66985.0,0.14809939]
[1722297364647,0.06887017,66986.0,66985.0,0.29738639]
[1722297364786,0.06887017,66986.0,66985.0,0.59596039]
[1722297364987,0.06887017,66986.0,66985.0,0.29738639]
[1722297365190,0.0539721,66986.0,66985.0,0.29738639]
[1722297365400,0.01489807,66986.0,66985.0,0.29738639]
[1722297365601,0.0539721,66987.0,66985.0,0.29738639]
[1722297365825,0.0539721,66986.0,66985.0,0.29738639]
[1722297366041,0.0539721,66986.0,66985.0,0.14809939]
[1722297366042,0.06971017,66986.0,66985.0,0.14809939]
[1722297366210,0.48235904,66986.0,66985.0,0.14809939]
[1722297366441,0.33307504,66986.0,66985.0,0.14809939]
[1722297366644,0.33307504,66986.0,66985.0,0.15009939]
[1722297367231,0.33307551,66986.0,66985.0,0.15009939]
[1722297367484,0.48235951,66986.0,66985.0,0.15009939]
[1722297367692,0.50578059,66986.0,66985.0,0.15009939]
[1722297367865,0.48235951,66986.0,66985.0,0.15009939]
[1722297368269,0.48236131,66986.0,66985.0,0.15009939]
[1722297369431,0.60765152,66986.0,66985.0,0.15009939]
[1722297370692,0.50578244,66986.0,66985.0,0.15009939]
[1722297370928,0.50578244,66986.0,66985.0,0.007]
[1722297371170,1.70335597,66986.0,66985.0,0.007]
[1722297371618,1.70336089,66986.0,66985.0,0.007]
[1722297372054,1.70336089,66986.0,66985.0,0.005]
[1722297373214,0.1437,66974.0,66973.0,0.00885284]
[1722297373486,0.1437,66974.0,66968.0,0.149324]
[1722297373487,0.149314,66973.0,66968.0,0.149324]
[1722297373714,0.17805284,66972.0,66969.0,0.14309939]
[1722297373921,0.0539721,66971.0,66970.0,0.149319]
[1722297374126,0.19308501,66971.0,66970.0,0.29241839]
[1722297374325,0.19308501,66971.0,66970.0,0.14309939]
[1722297374534,0.06900173,66971.0,66970.0,0.14309939]
[1722297374745,0.19308485,66971.0,66970.0,0.14309939]
[1722297374942,0.19308317,66971.0,66970.0,0.14309939]
[1722297376481,0.06900173,66971.0,66970.0,1.02574231]
[1722297376695,0.06900173,66971.0,66970.0,1.32844239]
[1722297376913,0.0539721,66971.0,66970.0,1.32844239]
[1722297378044,0.0539721,66971.0,66970.0,1.34144239]
[1722297378271,0.0539721,66971.0,66970.0,1.48454178]
[1722297379351,0.07739549,66971.0,66970.0,1.48454178]
[1722297379574,0.0539721,66971.0,66970.0,1.48454178]
[1722297382672,0.0549721,66971.0,66970.0,1.49854178]
[1722297388754,0.0549721,66971.0,66970.0,1.59854178]
[1722297388974,0.001,66971.0,66970.0,1.59854178]
[1722297389176,0.001,66971.0,66970.0,1.60854178]
[1722297389398,0.02442199,66971.0,66970.0,1.61054178]
[1722297389599,0.001,66971.0,66970.0,1.61054178]
[1722297390021,0.001,66971.0,66970.0,1.59854178]
[1722297390238,0.001,66971.0,66970.0,1.60854178]
[1722297390438,0.001,66971.0,66970.0,1.59854178]
[1722297392994,0.02442165,66971.0,66970.0,1.59854178]
[1722297393171,0.001,66971.0,66970.0,1.59854178]
[1722297394377,0.06216133,66971.0,66970.0,1.59854178]
[1722297394550,0.06216133,66971.0,66970.0,1.45844178]
[1722297396507,0.08558355,66971.0,66970.0,1.45844178]
[1722297397238,0.08558355,66971.0,66970.0,1.31534239]
[1722297397450,0.18325984,66971.0,66970.0,1.31534239]
[1722297397634,0.07723762,66971.0,66970.0,1.31534239]
[1722297400327,0.06216133,66971.0,66970.0,1.31534239]
[1722297400977,0.08558391,66971.0,66970.0,1.31534239]
[1722297401185,0.08558391,66971.0,66970.0,1.45086587]
[1722297401186,0.06216133,66971.0,66970.0,1.45086587]
[1722297404037,0.06216133,66971.0,66970.0,1.51216587]
[1722297404582,0.08558347,66971.0,66970.0,1.51216587]
[1722297407615,0.08558347,66971.0,66970.0,1.45086587]
[1722297408920,0.06216133,66971.0,66970.0,1.45086587]
[1722297411196,0.06216133,66971.0,66970.0,1.53576587]
[1722297411719,0.08558344,66971.0,66970.0,1.53576587]
[1722297412756,0.06216133,66971.0,66970.0,1.40024239]
[1722297413193,0.06216133,66971.0,66970.0,1.01670139]
[1722297413363,0.20056133,66971.0,66970.0,1.01670139]
[1722297413562,0.21563737,66971.0,66970.0,1.01670139]
[1722297413766,0.21563737,66971.0,66970.0,0.61806039]
[1722297414177,0.21563737,66971.0,66970.0,0.17009939]
[1722297414431,0.2824377,66971.0,66970.0,0.31941939]
[1722297414634,0.2824377,66971.0,66970.0,0.17009939]
[1722297414835,0.5810737,66971.0,66970.0,0.027]
[1722297415050,0.57810911,66971.0,66970.0,0.027]
[1722297415448,0.87678795,66971.0,66970.0,0.027]
[1722297416003,0.57815195,66971.0,66970.0,0.027]
[1722297416207,0.51246644,66971.0,66970.0,0.027]
[1722297416444,1.19885849,66971.0,66970.0,0.027]
[1722297416642,1.37597973,66971.0,66970.0,0.027]
[1722297416825,1.67457567,66971.0,66970.0,0.014]
[1722297417027,1.54095373,66971.0,66970.0,0.025]
[1722297417455,1.6745288,66971.0,66970.0,0.025]
[1722297417591,1.54095373,66971.0,66970.0,0.025]
[1722297417793,1.71691891,66971.0,66970.0,0.025]
[1722297417996,1.8600183,66971.0,66970.0,0.025]
[1722297418179,1.85858538,66971.0,66970.0,0.025]
[1722297418378,2.30917724,66971.0,66970.0,0.025]
[1722297418629,2.15900357,66971.0,66970.0,0.025]
[1722297419297,2.15800357,66971.0,66970.0,0.011]
[1722297419507,2.15826493,66971.0,66970.0,0.011]
[1722297419760,2.26826493,66971.0,66970.0,0.011]
[1722297420429,2.25826493,66971.0,66970.0,0.011]
[1722297420901,2.26926493,66971.0,66970.0,0.023]
[1722297421153,2.10894693,66971.0,66967.0,0.000913]
[1722297421367,1.26001855,66968.0,66967.0,0.000913]
[1722297421594,1.75472383,66968.0,66967.0,0.000913]
[1722297421821,2.4560583,66968.0,66967.0,0.000913]
[1722297422042,2.71381305,66968.0,66967.0,0.000913]
[1722297422266,2.86391047,66968.0,66967.0,0.000913]
[1722297422490,2.71381305,66968.0,66967.0,0.000913]
[1722297422924,0.26388,66943.0,66942.0,0.000924]
[1722297423174,1.6061946,66943.0,66942.0,0.000924]
[1722297423377,2.39542147,66943.0,66942.0,0.000924]
[1722297423582,2.43851812,66943.0,66942.0,0.000924]
[1722297423778,2.88158247,66943.0,66942.0,0.000924]
[1722297424005,2.66407425,66943.0,66942.0,0.000924]
[1722297424202,2.58127792,66943.0,66942.0,0.000924]
[1722297424629,2.28012061,66943.0,66942.0,0.000924]
[1722297424832,2.40430748,66943.0,66942.0,0.004924]
[1722297425334,2.61365319,66943.0,66942.0,0.004924]
[1722297425580,2.37621726,66943.0,66942.0,0.000924]
[1722297425826,3.11122168,66943.0,66942.0,0.000924]
[1722297426037,2.99252313,66943.0,66942.0,0.000924]
[1722297426244,3.00153247,66943.0,66942.0,0.000924]
[1722297426471,3.13423332,66943.0,66942.0,0.000924]
[1722297426707,3.02497385,66943.0,66942.0,0.000924]
[1722297427126,3.13544366,66943.0,66942.0,0.000924]
[1722297427345,2.85238234,66943.0,66942.0,0.000924]
[1722297427544,2.54256301,66943.0,66942.0,0.000924]
[1722297427975,2.40792628,66943.0,66942.0,0.001924]
[1722297428087,2.4964108,66943.0,66942.0,0.001924]
[1722297428311,2.34684862,66943.0,66942.0,0.000924]
[1722297428508,2.36084862,66943.0,66942.0,0.000924]
[1722297428710,2.36384862,66943.0,66942.0,0.001924]
[1722297429155,2.48339005,66943.0,66942.0,0.001924]
[1722297429587,2.48039005,66943.0,66942.0,0.000924]
[1722297429788,2.78215105,66943.0,66942.0,0.001924]
[1722297430372,2.94769055,66943.0,66942.0,0.001924]
[1722297430563,3.00478814,66943.0,66942.0,0.001924]
[1722297431113,3.01439095,66943.0,66942.0,0.001924]
[1722297431518,2.88668343,66943.0,66942.0,0.001924]
[1722297431719,3.01438049,66943.0,66942.0,0.001924]
[1722297431982,2.88667773,66943.0,66942.0,0.001924]
[1722297432143,2.90067773,66943.0,66942.0,0.001924]
[1722297432369,2.80560575,66943.0,66942.0,0.001924]
[1722297432571,2.98522681,66943.0,66942.0,0.001924]
[1722297432786,2.85757976,66943.0,66942.0,0.001924]
[1722297432980,2.98522539,66943.0,66942.0,0.001924]
[1722297433397,2.457003,66943.0,66942.0,0.001924]
[1722297433606,2.17500332,66943.0,66942.0,0.001924]
[1722297433814,2.13190667,66943.0,66942.0,0.001924]
[1722297434230,2.00470933,66943.0,66942.0,0.000924]
[1722297434436,1.4301316,66943.0,66942.0,0.000924]
[1722297434659,1.4301316,66943.0,66942.0,0.001924]
[1722297434660,0.80201727,66943.0,66942.0,0.001924]
[1722297434862,1.10077827,66943.0,66942.0,0.001924]
[1722297435003,1.09777827,66943.0,66942.0,0.000924]
[1722297435826,1.09777827,66943.0,66942.0,0.001924]
[1722297435827,0.20449527,66943.0,66942.0,0.001924]
[1722297436053,0.05511527,66943.0,66942.0,0.145924]
[1722297436473,0.20449527,66943.0,66942.0,0.145924]
[1722297437268,0.50325627,66943.0,66942.0,0.001924]
[1722297437677,0.78801727,66943.0,66942.0,0.001924]
[1722297438287,0.50325627,66943.0,66942.0,0.001924]
[1722297438442,0.48925627,66943.0,66942.0,0.001924]
[1722297439151,0.48625627,66943.0,66942.0,0.000924]